[Event "Titled Tuesday Blitz April 11 Late 2023"]
[White "Urazayev, Arystanbek"]
[Black "Goroshkov, Maksym"]
[WhiteFideId "13709810"]
[BlackFideId "14142716"]
[WhiteElo "2449"]
[BlackElo "2322"]
[Result "0-1"]
[Round "10"]
[TimeControl "180+2"]
[Date "2023.04.11"]
[WhiteClock "0:00:03"]
[BlackClock "0:00:07"]

1. c4 {[%clk 0:03:00]}  Nf6 {[%clk 0:02:59]} 2. Nc3 {[%clk 0:03:01]}  e5 {[%clk 0:02:59]} 3. Nf3 {[%clk 0:03:01]}  Nc6 {[%clk 0:02:59]} 4. e3 {[%clk 0:03:01]}  Bb4 {[%clk 0:02:57]} 5. Qc2 {[%clk 0:03:02]}  O-O {[%clk 0:02:56]} 6. Nd5 {[%clk 0:03:01]}  Be7 {[%clk 0:02:53]} 7. Ng5 {[%clk 0:02:59]}  g6 {[%clk 0:02:52]} 8. h4 {[%clk 0:02:56]}  d6 {[%clk 0:02:43]} 9. a3 {[%clk 0:02:35]}  Bf5 {[%clk 0:02:40]} 10. Bd3 {[%clk 0:02:32]}  Bxd3 {[%clk 0:02:26]} 11. Qxd3 {[%clk 0:02:32]}  Nxd5 {[%clk 0:02:21]} 12. cxd5 {[%clk 0:02:31]}  Nb8 {[%clk 0:02:21]} 13. b4 {[%clk 0:01:40]}  Nd7 {[%clk 0:02:19]} 14. Bb2 {[%clk 0:01:39]}  Bxg5 {[%clk 0:02:14]} 15. hxg5 {[%clk 0:01:40]}  Qxg5 {[%clk 0:02:15]} 16. Kf1 {[%clk 0:01:40]}  f5 {[%clk 0:02:08]} 17. Rc1 {[%clk 0:01:41]}  Rac8 {[%clk 0:02:04]} 18. f4 {[%clk 0:01:33]}  exf4 {[%clk 0:02:02]} 19. Qd4 {[%clk 0:01:33]}  Qf6 {[%clk 0:01:55]} 20. exf4 {[%clk 0:01:34]}  Qxd4 {[%clk 0:01:54]} 21. Bxd4 {[%clk 0:01:35]}  c5 {[%clk 0:01:52]} 22. dxc6 {[%clk 0:01:31]}  Rxc6 {[%clk 0:01:48]} 23. Ke2 {[%clk 0:01:29]}  Rfc8 {[%clk 0:01:46]} 24. Rxc6 {[%clk 0:01:26]}  bxc6 {[%clk 0:01:46]} 25. Kd3 {[%clk 0:01:05]}  c5 {[%clk 0:01:44]} 26. Rc1 {[%clk 0:01:03]}  Kf7 {[%clk 0:01:38]} 27. bxc5 {[%clk 0:01:02]}  Nxc5+ {[%clk 0:01:35]} 28. Bxc5 {[%clk 0:01:02]}  dxc5 {[%clk 0:01:32]} 29. Kc4 {[%clk 0:00:56]}  Rd8 {[%clk 0:01:32]} 30. Rh1 {[%clk 0:00:54]}  h5 {[%clk 0:01:26]} 31. Rd1 {[%clk 0:00:41]}  Rd4+ {[%clk 0:01:18]} 32. Kxc5 {[%clk 0:00:42]}  Rxf4 {[%clk 0:01:18]} 33. d4 {[%clk 0:00:42]}  Rf2 {[%clk 0:01:16]} 34. g3 {[%clk 0:00:37]}  Rf3 {[%clk 0:01:15]} 35. Rg1 {[%clk 0:00:35]}  Rxa3 {[%clk 0:01:13]} 36. Kd6 {[%clk 0:00:32]}  Ra6+ {[%clk 0:01:10]} 37. Ke5 {[%clk 0:00:33]}  Ra4 {[%clk 0:01:03]} 38. Rb1 {[%clk 0:00:29]}  g5 {[%clk 0:00:59]} 39. Rb7+ {[%clk 0:00:30]}  Kg6 {[%clk 0:00:58]} 40. d5 {[%clk 0:00:29]}  Re4+ {[%clk 0:00:54]} 41. Kd6 {[%clk 0:00:29]}  f4 {[%clk 0:00:50]} 42. gxf4 {[%clk 0:00:28]}  Rxf4 {[%clk 0:00:50]} 43. Ke5 {[%clk 0:00:19]}  Rf1 {[%clk 0:00:47]} 44. d6 {[%clk 0:00:19]}  Re1+ {[%clk 0:00:47]} 45. Kd5 {[%clk 0:00:20]}  Rd1+ {[%clk 0:00:47]} 46. Ke6 {[%clk 0:00:21]}  h4 {[%clk 0:00:47]} 47. Rb8 {[%clk 0:00:18]}  Kh5 {[%clk 0:00:44]} 48. d7 {[%clk 0:00:16]}  h3 {[%clk 0:00:41]} 49. Kf5 {[%clk 0:00:14]}  Rd5+ {[%clk 0:00:31]} 50. Ke6 {[%clk 0:00:14]}  Rxd7 {[%clk 0:00:30]} 51. Kxd7 {[%clk 0:00:15]}  Kg4 {[%clk 0:00:28]} 52. Rb4+ {[%clk 0:00:12]}  Kg3 {[%clk 0:00:27]} 53. Rb3+ {[%clk 0:00:12]}  Kg2 {[%clk 0:00:25]} 54. Rb2+ {[%clk 0:00:12]}  Kg3 {[%clk 0:00:25]} 55. Rb3+ {[%clk 0:00:10]}  Kh4 {[%clk 0:00:24]} 56. Ke6 {[%clk 0:00:07]}  h2 {[%clk 0:00:24]} 57. Rb8 {[%clk 0:00:07]}  Kg3 {[%clk 0:00:15]} 58. Rb3+ {[%clk 0:00:07]}  Kg4 {[%clk 0:00:13]} 59. Rb1 {[%clk 0:00:06]}  Kf3 {[%clk 0:00:11]} 60. Rb3+ {[%clk 0:00:06]}  Kg4 {[%clk 0:00:11]} 61. Rb1 {[%clk 0:00:04]}  Kg3 {[%clk 0:00:09]} 62. Kf5 {[%clk 0:00:03]}  g4 {[%clk 0:00:09]} 63. Rb3+ {[%clk 0:00:03]}  Kh4 {[%clk 0:00:09]} 64. Rb8 {[%clk 0:00:03]}  Kh3 {[%clk 0:00:07]} 0-1


[Site "https://www.chess.com"]

[Event "Titled Tuesday Blitz April 11 Late 2023"]
[White "Silva, Caio Henrique Angelico"]
[Black "Bilych, Olexiy"]
[WhiteFideId "22777210"]
[BlackFideId "14156504"]
[WhiteElo "2096"]
[BlackElo "2320"]
[Result "0-1"]
[Round "10"]
[TimeControl "180+2"]
[Date "2023.04.11"]
[WhiteClock "0:00:07"]
[BlackClock "0:00:28"]

1. Nf3 {[%clk 0:02:55]}  b6 {[%clk 0:03:00]} 2. g3 {[%clk 0:02:50]}  Bb7 {[%clk 0:03:01]} 3. Bg2 {[%clk 0:02:51]}  g6 {[%clk 0:03:01]} 4. O-O {[%clk 0:02:50]}  Bg7 {[%clk 0:03:01]} 5. d4 {[%clk 0:02:50]}  e6 {[%clk 0:03:00]} 6. c4 {[%clk 0:02:49]}  Ne7 {[%clk 0:03:00]} 7. b3 {[%clk 0:02:49]}  d6 {[%clk 0:03:00]} 8. Bb2 {[%clk 0:02:49]}  O-O {[%clk 0:03:01]} 9. Nc3 {[%clk 0:02:49]}  Nd7 {[%clk 0:03:01]} 10. e4 {[%clk 0:02:49]}  h6 {[%clk 0:03:00]} 11. Re1 {[%clk 0:02:47]}  g5 {[%clk 0:02:59]} 12. h4 {[%clk 0:02:45]}  g4 {[%clk 0:02:45]} 13. Nh2 {[%clk 0:02:45]}  h5 {[%clk 0:02:46]} 14. Qd2 {[%clk 0:02:43]}  Ng6 {[%clk 0:02:43]} 15. Rad1 {[%clk 0:02:39]}  e5 {[%clk 0:02:40]} 16. d5 {[%clk 0:02:38]}  Nf6 {[%clk 0:02:26]} 17. Rf1 {[%clk 0:02:26]}  Bc8 {[%clk 0:02:18]} 18. b4 {[%clk 0:02:24]}  a5 {[%clk 0:02:18]} 19. a3 {[%clk 0:02:24]}  Bd7 {[%clk 0:02:17]} 20. Qe3 {[%clk 0:02:22]}  Kh7 {[%clk 0:02:15]} 21. Bc1 {[%clk 0:02:12]}  axb4 {[%clk 0:02:13]} 22. axb4 {[%clk 0:02:13]}  Ra1 {[%clk 0:02:12]} 23. Bd2 {[%clk 0:02:08]}  Rxd1 {[%clk 0:02:09]} 24. Rxd1 {[%clk 0:02:09]}  Qa8 {[%clk 0:02:08]} 25. c5 {[%clk 0:02:09]}  bxc5 {[%clk 0:02:07]} 26. bxc5 {[%clk 0:02:09]}  Rb8 {[%clk 0:01:57]} 27. c6 {[%clk 0:01:54]}  Bc8 {[%clk 0:01:57]} 28. Bf1 {[%clk 0:01:52]}  Qa3 {[%clk 0:01:34]} 29. Nb5 {[%clk 0:01:29]}  Qa4 {[%clk 0:01:33]} 30. Nxc7 {[%clk 0:01:14]}  Qxd1 {[%clk 0:01:32]} 31. Qa7 {[%clk 0:00:57]}  Rb1 {[%clk 0:01:25]} 32. Be3 {[%clk 0:00:56]}  Nxe4 {[%clk 0:01:14]} 33. Ne8 {[%clk 0:00:56]}  Qxd5 {[%clk 0:00:51]} 34. c7 {[%clk 0:00:44]}  Qc6 {[%clk 0:00:45]} 35. Nxg7 {[%clk 0:00:30]}  Nc3 {[%clk 0:00:41]} 36. f3 {[%clk 0:00:13]}  Kxg7 {[%clk 0:00:36]} 37. Qb8 {[%clk 0:00:12]}  Qb7 {[%clk 0:00:28]} 38. Qxb7 {[%clk 0:00:08]}  Rxb7 {[%clk 0:00:29]} 39. fxg4 {[%clk 0:00:08]}  hxg4 {[%clk 0:00:28]} 40. Ba6 {[%clk 0:00:07]}  Rxc7 {[%clk 0:00:28]} 41. Bxc8 {[%clk 0:00:08]}  Rxc8 {[%clk 0:00:28]} 42. Nxg4 {[%clk 0:00:08]}  f5 {[%clk 0:00:28]} 43. Bh6+ {[%clk 0:00:07]}  Kh7 {[%clk 0:00:28]} 0-1


[Site "https://www.chess.com"]

[Event "Titled Tuesday Blitz April 11 Late 2023"]
[White "Mendez Fortes, Eduardo Jesus"]
[Black "Senthilkumar, Pranav"]
[WhiteFideId "3502376"]
[BlackFideId "2083477"]
[WhiteElo "2307"]
[BlackElo "1860"]
[Result "1-0"]
[Round "10"]
[TimeControl "180+2"]
[Date "2023.04.11"]
[WhiteClock "0:00:39"]
[BlackClock "0:00:53"]

1. e4 {[%clk 0:03:00]}  c5 {[%clk 0:03:00]} 2. Nf3 {[%clk 0:03:00]}  e6 {[%clk 0:03:00]} 3. d4 {[%clk 0:03:01]}  cxd4 {[%clk 0:03:00]} 4. Nxd4 {[%clk 0:03:02]}  Nc6 {[%clk 0:03:00]} 5. Nc3 {[%clk 0:03:02]}  Qc7 {[%clk 0:03:00]} 6. Be3 {[%clk 0:03:02]}  a6 {[%clk 0:03:01]} 7. Qd2 {[%clk 0:03:02]}  Nf6 {[%clk 0:03:00]} 8. O-O-O {[%clk 0:03:02]}  Be7 {[%clk 0:03:00]} 9. f3 {[%clk 0:03:01]}  b5 {[%clk 0:02:58]} 10. g4 {[%clk 0:03:00]}  Bb7 {[%clk 0:02:55]} 11. g5 {[%clk 0:02:52]}  Nh5 {[%clk 0:02:55]} 12. Kb1 {[%clk 0:02:47]}  Rc8 {[%clk 0:02:44]} 13. Nxc6 {[%clk 0:02:36]}  Bxc6 {[%clk 0:02:44]} 14. Ne2 {[%clk 0:02:34]}  O-O {[%clk 0:02:36]} 15. Ng3 {[%clk 0:02:32]}  Nxg3 {[%clk 0:02:35]} 16. hxg3 {[%clk 0:02:33]}  Qxg3 {[%clk 0:02:30]} 17. Rh3 {[%clk 0:02:00]}  Qe5 {[%clk 0:02:22]} 18. Bf4 {[%clk 0:02:00]}  Qc5 {[%clk 0:02:18]} 19. Qh2 {[%clk 0:01:58]}  h6 {[%clk 0:02:11]} 20. gxh6 {[%clk 0:01:57]}  g6 {[%clk 0:02:08]} 21. Be5 {[%clk 0:01:52]}  Kh7 {[%clk 0:02:06]} 22. Bd4 {[%clk 0:01:45]}  Qb4 {[%clk 0:01:55]} 23. c3 {[%clk 0:01:27]}  Qa4 {[%clk 0:01:49]} 24. Rc1 {[%clk 0:01:15]}  f6 {[%clk 0:01:46]} 25. e5 {[%clk 0:01:09]}  f5 {[%clk 0:01:40]} 26. Bd3 {[%clk 0:01:06]}  b4 {[%clk 0:01:36]} 27. b3 {[%clk 0:01:00]}  Qa5 {[%clk 0:01:31]} 28. c4 {[%clk 0:01:00]}  Qc7 {[%clk 0:01:23]} 29. Rg1 {[%clk 0:00:59]}  Rg8 {[%clk 0:01:22]} 30. Rhg3 {[%clk 0:00:57]}  g5 {[%clk 0:01:05]} 31. f4 {[%clk 0:00:54]}  g4 {[%clk 0:01:04]} 32. Rxg4 {[%clk 0:00:51]}  Rxg4 {[%clk 0:00:57]} 33. Rxg4 {[%clk 0:00:52]}  Bf8 {[%clk 0:00:53]} 34. Qh5 {[%clk 0:00:39]} 1-0


[Site "https://www.chess.com"]

[Event "Titled Tuesday Blitz April 11 Late 2023"]
[White "Almeida Junior, Alvaro Alves de"]
[Black "Francisco Guecamburu, Candela Be"]
[WhiteFideId "2149974"]
[BlackFideId "160911"]
[WhiteElo "2122"]
[BlackElo "2326"]
[Result "1-0"]
[Round "10"]
[TimeControl "180+2"]
[Date "2023.04.11"]
[WhiteClock "0:00:13"]
[BlackClock "0:00:18"]

1. e4 {[%clk 0:02:58]}  c5 {[%clk 0:03:00]} 2. Nf3 {[%clk 0:02:58]}  g6 {[%clk 0:02:59]} 3. d4 {[%clk 0:02:50]}  cxd4 {[%clk 0:03:00]} 4. Nxd4 {[%clk 0:02:51]}  Bg7 {[%clk 0:03:01]} 5. Nc3 {[%clk 0:02:51]}  Nc6 {[%clk 0:03:01]} 6. Be3 {[%clk 0:02:48]}  Nf6 {[%clk 0:03:01]} 7. Be2 {[%clk 0:02:46]}  O-O {[%clk 0:03:01]} 8. O-O {[%clk 0:02:44]}  d5 {[%clk 0:03:02]} 9. exd5 {[%clk 0:02:39]}  Nb4 {[%clk 0:03:01]} 10. Bf3 {[%clk 0:02:35]}  Nbxd5 {[%clk 0:03:01]} 11. Nxd5 {[%clk 0:02:35]}  Nxd5 {[%clk 0:03:02]} 12. Bxd5 {[%clk 0:02:12]}  Qxd5 {[%clk 0:03:03]} 13. c3 {[%clk 0:02:11]}  a5 {[%clk 0:02:44]} 14. Qf3 {[%clk 0:02:03]}  Rd8 {[%clk 0:02:32]} 15. Qxd5 {[%clk 0:01:14]}  Rxd5 {[%clk 0:02:33]} 16. Rad1 {[%clk 0:01:14]}  a4 {[%clk 0:02:30]} 17. a3 {[%clk 0:00:59]}  Bg4 {[%clk 0:01:56]} 18. f3 {[%clk 0:00:51]}  Bd7 {[%clk 0:01:54]} 19. Nc2 {[%clk 0:00:42]}  Bc6 {[%clk 0:01:42]} 20. Rxd5 {[%clk 0:00:36]}  Bxd5 {[%clk 0:01:42]} 21. Rd1 {[%clk 0:00:33]}  Bb3 {[%clk 0:01:42]} 22. Rd2 {[%clk 0:00:34]}  Bxc2 {[%clk 0:01:33]} 23. Rxc2 {[%clk 0:00:34]}  Rd8 {[%clk 0:01:33]} 24. Rd2 {[%clk 0:00:28]}  Rxd2 {[%clk 0:01:31]} 25. Bxd2 {[%clk 0:00:29]}  b5 {[%clk 0:01:27]} 26. Kf1 {[%clk 0:00:27]}  f5 {[%clk 0:01:19]} 27. Ke2 {[%clk 0:00:27]}  Kf7 {[%clk 0:01:14]} 28. Kd3 {[%clk 0:00:26]}  Ke6 {[%clk 0:01:14]} 29. c4 {[%clk 0:00:18]}  Bxb2 {[%clk 0:01:08]} 30. Bb4 {[%clk 0:00:16]}  bxc4+ {[%clk 0:01:06]} 31. Kxc4 {[%clk 0:00:17]}  Be5 {[%clk 0:01:04]} 32. h3 {[%clk 0:00:16]}  Bd6 {[%clk 0:00:47]} 33. Kb5 {[%clk 0:00:15]}  Bxb4 {[%clk 0:00:36]} 34. Kxb4 {[%clk 0:00:14]}  Kd5 {[%clk 0:00:37]} 35. Kxa4 {[%clk 0:00:14]}  Kc4 {[%clk 0:00:37]} 36. f4 {[%clk 0:00:10]}  g5 {[%clk 0:00:34]} 37. g3 {[%clk 0:00:07]}  gxf4 {[%clk 0:00:29]} 38. gxf4 {[%clk 0:00:08]}  e5 {[%clk 0:00:26]} 39. fxe5 {[%clk 0:00:08]}  Kd5 {[%clk 0:00:26]} 40. Kb4 {[%clk 0:00:04]}  f4 {[%clk 0:00:25]} 41. Kc3 {[%clk 0:00:05]}  Kxe5 {[%clk 0:00:22]} 42. Kd2 {[%clk 0:00:05]}  Ke4 {[%clk 0:00:18]} 43. Ke2 {[%clk 0:00:05]}  Kd4 {[%clk 0:00:12]} 44. Kf3 {[%clk 0:00:06]}  Kc4 {[%clk 0:00:12]} 45. Kxf4 {[%clk 0:00:07]}  Kb3 {[%clk 0:00:13]} 46. Kg5 {[%clk 0:00:08]}  Kxa3 {[%clk 0:00:14]} 47. Kh6 {[%clk 0:00:09]}  Kb4 {[%clk 0:00:15]} 48. Kxh7 {[%clk 0:00:10]}  Kc5 {[%clk 0:00:16]} 49. Kg7 {[%clk 0:00:11]}  Kd5 {[%clk 0:00:17]} 50. h4 {[%clk 0:00:11]}  Ke5 {[%clk 0:00:18]} 51. h5 {[%clk 0:00:12]}  Kf5 {[%clk 0:00:18]} 52. h6 {[%clk 0:00:13]} 1-0


[Site "https://www.chess.com"]

[Event "Titled Tuesday Blitz April 11 Late 2023"]
[White "Mikhalsky, Vladimir"]
[Black "Poliakova, Varvara"]
[WhiteFideId "14144352"]
[BlackFideId "13518313"]
[WhiteElo "2236"]
[BlackElo "2075"]
[Result "0-1"]
[Round "10"]
[TimeControl "180+2"]
[Date "2023.04.11"]
[WhiteClock "0:00:04"]
[BlackClock "0:02:00"]

1. d4 {[%clk 0:02:53]}  f5 {[%clk 0:02:59]} 2. Nc3 {[%clk 0:02:52]}  d5 {[%clk 0:02:58]} 3. Bg5 {[%clk 0:02:50]}  g6 {[%clk 0:02:58]} 4. h4 {[%clk 0:02:50]}  h6 {[%clk 0:02:55]} 5. Bf4 {[%clk 0:02:49]}  Bg7 {[%clk 0:02:53]} 6. Nf3 {[%clk 0:02:43]}  c6 {[%clk 0:02:51]} 7. Ne5 {[%clk 0:02:40]}  Bxe5 {[%clk 0:02:52]} 8. Bxe5 {[%clk 0:02:40]}  Nf6 {[%clk 0:02:52]} 9. Bxf6 {[%clk 0:02:31]}  exf6 {[%clk 0:02:52]} 10. h5 {[%clk 0:02:31]}  g5 {[%clk 0:02:50]} 11. e3 {[%clk 0:02:30]}  Be6 {[%clk 0:02:46]} 12. Bd3 {[%clk 0:02:29]}  Qd7 {[%clk 0:02:47]} 13. Qf3 {[%clk 0:02:25]}  O-O {[%clk 0:02:44]} 14. Ne2 {[%clk 0:02:25]}  Na6 {[%clk 0:02:41]} 15. c3 {[%clk 0:02:20]}  Nc7 {[%clk 0:02:39]} 16. Ng3 {[%clk 0:02:19]}  f4 {[%clk 0:02:35]} 17. exf4 {[%clk 0:01:26]}  Bg4 {[%clk 0:02:34]} 18. Qe3 {[%clk 0:01:26]}  Rae8 {[%clk 0:02:33]} 19. Ne4 {[%clk 0:01:24]}  dxe4 {[%clk 0:02:34]} 20. Bc4+ {[%clk 0:01:23]}  Nd5 {[%clk 0:02:33]} 21. Qg3 {[%clk 0:01:11]}  Qf5 {[%clk 0:02:30]} 22. Kf1 {[%clk 0:01:01]}  Qxf4 {[%clk 0:02:30]} 23. Kg1 {[%clk 0:00:53]}  Qxg3 {[%clk 0:02:30]} 24. fxg3 {[%clk 0:00:53]}  e3 {[%clk 0:02:30]} 25. Kh2 {[%clk 0:00:51]}  b5 {[%clk 0:02:29]} 26. Bb3 {[%clk 0:00:50]}  Kg7 {[%clk 0:02:29]} 27. a4 {[%clk 0:00:50]}  b4 {[%clk 0:02:26]} 28. c4 {[%clk 0:00:50]}  Nc7 {[%clk 0:02:26]} 29. d5 {[%clk 0:00:50]}  cxd5 {[%clk 0:02:24]} 30. cxd5 {[%clk 0:00:50]}  Rd8 {[%clk 0:02:18]} 31. Rhe1 {[%clk 0:00:49]}  e2 {[%clk 0:02:18]} 32. Bc4 {[%clk 0:00:37]}  Rfe8 {[%clk 0:02:18]} 33. Rac1 {[%clk 0:00:28]}  Nxd5 {[%clk 0:02:17]} 34. Bb5 {[%clk 0:00:29]}  Re7 {[%clk 0:02:16]} 35. Rc2 {[%clk 0:00:27]}  b3 {[%clk 0:02:13]} 36. Rd2 {[%clk 0:00:27]}  Re5 {[%clk 0:02:11]} 37. Bxe2 {[%clk 0:00:26]}  Rde8 {[%clk 0:02:10]} 38. Bxg4 {[%clk 0:00:25]}  Rxe1 {[%clk 0:02:09]} 39. Rxd5 {[%clk 0:00:25]}  R8e7 {[%clk 0:02:05]} 40. Rb5 {[%clk 0:00:24]}  R1e3 {[%clk 0:02:03]} 41. Bf5 {[%clk 0:00:21]}  R3e5 {[%clk 0:02:02]} 42. Rxe5 {[%clk 0:00:18]}  Rxe5 {[%clk 0:02:03]} 43. g4 {[%clk 0:00:17]}  Re2 {[%clk 0:02:01]} 44. Kh3 {[%clk 0:00:07]}  Rxb2 {[%clk 0:02:02]} 45. g3 {[%clk 0:00:07]}  Ra2 {[%clk 0:02:00]} 46. Be6 {[%clk 0:00:07]}  Ra3 {[%clk 0:01:57]} 47. a5 {[%clk 0:00:07]}  b2 {[%clk 0:01:58]} 48. Bf5 {[%clk 0:00:07]}  Ra1 {[%clk 0:01:57]} 49. a6 {[%clk 0:00:06]}  b1=Q {[%clk 0:01:57]} 50. Bxb1 {[%clk 0:00:05]}  Rxb1 {[%clk 0:01:58]} 51. Kg2 {[%clk 0:00:05]}  Rb6 {[%clk 0:01:59]} 52. Kh3 {[%clk 0:00:04]}  Rxa6 {[%clk 0:02:00]} 0-1


[Site "https://www.chess.com"]

[Event "Titled Tuesday Blitz April 11 Late 2023"]
[White "Thorfinnsson, Bjorn"]
[Black "Mazurkiewicz, Michal"]
[WhiteFideId "2300982"]
[BlackFideId "1124943"]
[WhiteElo "2395"]
[BlackElo "2054"]
[Result "1-0"]
[Round "10"]
[TimeControl "180+2"]
[Date "2023.04.11"]
[WhiteClock "0:00:09"]
[BlackClock "0:00:11"]

1. d4 {[%clk 0:02:59]}  Nf6 {[%clk 0:02:59]} 2. Nf3 {[%clk 0:02:59]}  g6 {[%clk 0:02:59]} 3. Bg5 {[%clk 0:02:59]}  Bg7 {[%clk 0:02:59]} 4. e3 {[%clk 0:03:00]}  Ne4 {[%clk 0:02:58]} 5. Bh4 {[%clk 0:02:59]}  d5 {[%clk 0:02:57]} 6. Bd3 {[%clk 0:02:59]}  O-O {[%clk 0:02:56]} 7. c3 {[%clk 0:02:58]}  b6 {[%clk 0:02:45]} 8. Nbd2 {[%clk 0:02:53]}  Nxd2 {[%clk 0:02:43]} 9. Qxd2 {[%clk 0:02:50]}  c5 {[%clk 0:02:42]} 10. O-O {[%clk 0:02:38]}  Nc6 {[%clk 0:01:52]} 11. Bb5 {[%clk 0:02:17]}  Bb7 {[%clk 0:01:33]} 12. Rad1 {[%clk 0:01:51]}  c4 {[%clk 0:00:45]} 13. Ba4 {[%clk 0:01:50]}  a6 {[%clk 0:00:30]} 14. Bc2 {[%clk 0:01:46]}  Bc8 {[%clk 0:00:27]} 15. e4 {[%clk 0:01:41]}  Bg4 {[%clk 0:00:23]} 16. Qe3 {[%clk 0:01:33]}  Qd7 {[%clk 0:00:14]} 17. exd5 {[%clk 0:01:00]}  Qxd5 {[%clk 0:00:12]} 18. Be4 {[%clk 0:00:59]}  Qd7 {[%clk 0:00:12]} 19. h3 {[%clk 0:00:55]}  Bxf3 {[%clk 0:00:11]} 20. Qxf3 {[%clk 0:00:54]}  Rac8 {[%clk 0:00:12]} 21. Bxc6 {[%clk 0:00:54]}  Rxc6 {[%clk 0:00:11]} 22. Bxe7 {[%clk 0:00:54]}  Re8 {[%clk 0:00:11]} 23. Bg5 {[%clk 0:00:52]}  Rce6 {[%clk 0:00:10]} 24. Be3 {[%clk 0:00:52]}  b5 {[%clk 0:00:10]} 25. a3 {[%clk 0:00:51]}  f5 {[%clk 0:00:10]} 26. g3 {[%clk 0:00:50]}  Re4 {[%clk 0:00:09]} 27. Rde1 {[%clk 0:00:39]}  Bf8 {[%clk 0:00:08]} 28. Bd2 {[%clk 0:00:38]}  Qd5 {[%clk 0:00:09]} 29. Rxe4 {[%clk 0:00:35]}  Rxe4 {[%clk 0:00:09]} 30. Qd1 {[%clk 0:00:32]}  Bd6 {[%clk 0:00:09]} 31. Re1 {[%clk 0:00:31]}  Qe6 {[%clk 0:00:09]} 32. Rxe4 {[%clk 0:00:29]}  Qxe4 {[%clk 0:00:10]} 33. Qe1 {[%clk 0:00:28]}  Qxe1+ {[%clk 0:00:10]} 34. Bxe1 {[%clk 0:00:27]}  f4 {[%clk 0:00:10]} 35. Kg2 {[%clk 0:00:25]}  fxg3 {[%clk 0:00:10]} 36. fxg3 {[%clk 0:00:24]}  Kf7 {[%clk 0:00:11]} 37. Bd2 {[%clk 0:00:24]}  Ke6 {[%clk 0:00:11]} 38. Kf3 {[%clk 0:00:24]}  Kd5 {[%clk 0:00:11]} 39. h4 {[%clk 0:00:23]}  a5 {[%clk 0:00:10]} 40. g4 {[%clk 0:00:21]}  b4 {[%clk 0:00:10]} 41. axb4 {[%clk 0:00:20]}  axb4 {[%clk 0:00:10]} 42. cxb4 {[%clk 0:00:17]}  Kxd4 {[%clk 0:00:10]} 43. h5 {[%clk 0:00:16]}  gxh5 {[%clk 0:00:09]} 44. gxh5 {[%clk 0:00:15]}  Kd5 {[%clk 0:00:10]} 45. Bc3 {[%clk 0:00:15]}  Kc6 {[%clk 0:00:10]} 46. Ke4 {[%clk 0:00:16]}  Kb5 {[%clk 0:00:11]} 47. Kf5 {[%clk 0:00:14]}  Bxb4 {[%clk 0:00:09]} 48. Be5 {[%clk 0:00:14]}  Bf8 {[%clk 0:00:09]} 49. Kf6 {[%clk 0:00:13]}  Kb4 {[%clk 0:00:09]} 50. Kf7 {[%clk 0:00:13]}  Bc5 {[%clk 0:00:09]} 51. Kg7 {[%clk 0:00:13]}  Kb3 {[%clk 0:00:08]} 52. Kxh7 {[%clk 0:00:13]}  Be3 {[%clk 0:00:08]} 53. Kg6 {[%clk 0:00:13]}  Bc1 {[%clk 0:00:08]} 54. h6 {[%clk 0:00:13]}  Bxb2 {[%clk 0:00:08]} 55. Bxb2 {[%clk 0:00:11]}  Kxb2 {[%clk 0:00:09]} 56. h7 {[%clk 0:00:11]}  c3 {[%clk 0:00:10]} 57. h8=Q {[%clk 0:00:11]}  Kb3 {[%clk 0:00:11]} 58. Qb8+ {[%clk 0:00:11]}  Kc2 {[%clk 0:00:11]} 59. Qh2+ {[%clk 0:00:11]}  Kb1 {[%clk 0:00:11]} 60. Qg1+ {[%clk 0:00:11]}  Kb2 {[%clk 0:00:11]} 61. Qd4 {[%clk 0:00:11]}  Kb3 {[%clk 0:00:11]} 62. Qb6+ {[%clk 0:00:11]}  Ka2 {[%clk 0:00:11]} 63. Qa5+ {[%clk 0:00:11]}  Kb2 {[%clk 0:00:12]} 64. Qb4+ {[%clk 0:00:10]}  Kc2 {[%clk 0:00:12]} 65. Kf5 {[%clk 0:00:11]}  Kd3 {[%clk 0:00:12]} 66. Qe4+ {[%clk 0:00:10]}  Kd2 {[%clk 0:00:13]} 67. Qd4+ {[%clk 0:00:11]}  Kc2 {[%clk 0:00:13]} 68. Ke4 {[%clk 0:00:11]}  Kb3 {[%clk 0:00:13]} 69. Qb6+ {[%clk 0:00:11]}  Ka2 {[%clk 0:00:12]} 70. Qa5+ {[%clk 0:00:11]}  Kb3 {[%clk 0:00:12]} 71. Kd3 {[%clk 0:00:10]}  c2 {[%clk 0:00:11]} 72. Qc3+ {[%clk 0:00:09]} 1-0


[Site "https://www.chess.com"]

[Event "Titled Tuesday Blitz April 11 Late 2023"]
[White "Przybylski, Wojciech"]
[Black "Alimpic, Aleksa"]
[WhiteFideId "1117599"]
[BlackFideId "974323"]
[WhiteElo "2222"]
[BlackElo "2273"]
[Result "1-0"]
[Round "10"]
[TimeControl "180+2"]
[Date "2023.04.11"]
[WhiteClock "0:00:11"]
[BlackClock "0:00:24"]

1. e4 {[%clk 0:02:40]}  g6 {[%clk 0:02:58]} 2. d4 {[%clk 0:02:38]}  Bg7 {[%clk 0:02:59]} 3. Nf3 {[%clk 0:02:37]}  a6 {[%clk 0:02:58]} 4. c4 {[%clk 0:02:36]}  c5 {[%clk 0:02:53]} 5. d5 {[%clk 0:02:34]}  d6 {[%clk 0:02:53]} 6. Nc3 {[%clk 0:02:33]}  e5 {[%clk 0:02:53]} 7. Be2 {[%clk 0:02:33]}  h6 {[%clk 0:02:51]} 8. O-O {[%clk 0:02:32]}  f5 {[%clk 0:02:51]} 9. Ne1 {[%clk 0:02:32]}  Nf6 {[%clk 0:02:49]} 10. f3 {[%clk 0:02:30]}  O-O {[%clk 0:02:45]} 11. a3 {[%clk 0:02:28]}  Nh5 {[%clk 0:02:08]} 12. Nd3 {[%clk 0:02:26]}  Nd7 {[%clk 0:02:04]} 13. b4 {[%clk 0:02:22]}  b6 {[%clk 0:02:02]} 14. bxc5 {[%clk 0:02:16]}  bxc5 {[%clk 0:02:02]} 15. Rb1 {[%clk 0:02:15]}  fxe4 {[%clk 0:01:41]} 16. Nxe4 {[%clk 0:02:12]}  Ndf6 {[%clk 0:01:38]} 17. Qb3 {[%clk 0:01:50]}  Nxe4 {[%clk 0:01:35]} 18. fxe4 {[%clk 0:01:50]}  Rxf1+ {[%clk 0:01:35]} 19. Bxf1 {[%clk 0:01:50]}  Ra7 {[%clk 0:01:17]} 20. Qb8 {[%clk 0:01:27]}  Rf7 {[%clk 0:01:12]} 21. g3 {[%clk 0:01:07]}  Nf6 {[%clk 0:01:05]} 22. Bh3 {[%clk 0:01:01]}  Rf8 {[%clk 0:01:01]} 23. Bxc8 {[%clk 0:00:56]}  Qxc8 {[%clk 0:01:02]} 24. Qxc8 {[%clk 0:00:55]}  Rxc8 {[%clk 0:01:03]} 25. Nf2 {[%clk 0:00:54]}  Nd7 {[%clk 0:00:44]} 26. Rb7 {[%clk 0:00:52]}  Rb8 {[%clk 0:00:42]} 27. Rxd7 {[%clk 0:00:50]}  Rb1 {[%clk 0:00:43]} 28. Nd3 {[%clk 0:00:26]}  Rb3 {[%clk 0:00:43]} 29. Ne1 {[%clk 0:00:21]}  h5 {[%clk 0:00:28]} 30. Kf1 {[%clk 0:00:16]}  Rb1 {[%clk 0:00:28]} 31. Bd2 {[%clk 0:00:16]}  Rb6 {[%clk 0:00:22]} 32. Ke2 {[%clk 0:00:15]}  Bf6 {[%clk 0:00:23]} 33. a4 {[%clk 0:00:14]}  h4 {[%clk 0:00:21]} 34. a5 {[%clk 0:00:14]}  Rb2 {[%clk 0:00:21]} 35. Rxd6 {[%clk 0:00:13]}  Kf7 {[%clk 0:00:21]} 36. Nf3 {[%clk 0:00:13]}  hxg3 {[%clk 0:00:21]} 37. hxg3 {[%clk 0:00:13]}  Ra2 {[%clk 0:00:21]} 38. Rxa6 {[%clk 0:00:11]}  g5 {[%clk 0:00:21]} 39. g4 {[%clk 0:00:10]}  Ke7 {[%clk 0:00:20]} 40. Re6+ {[%clk 0:00:10]}  Kf7 {[%clk 0:00:20]} 41. Nxe5+ {[%clk 0:00:10]}  Bxe5 {[%clk 0:00:20]} 42. Rxe5 {[%clk 0:00:10]}  Kf6 {[%clk 0:00:21]} 43. Rf5+ {[%clk 0:00:11]}  Kg6 {[%clk 0:00:22]} 44. e5 {[%clk 0:00:11]}  Ra3 {[%clk 0:00:23]} 45. e6 {[%clk 0:00:11]}  Rb3 {[%clk 0:00:23]} 46. e7 {[%clk 0:00:11]}  Rb8 {[%clk 0:00:24]} 47. a6 {[%clk 0:00:10]}  Re8 {[%clk 0:00:24]} 48. d6 {[%clk 0:00:11]} 1-0


[Site "https://www.chess.com"]